[Event "2nd Gujarat Open 2019"]
[Site "Ahmedabad, Gujarat"]
[Date "2019.09.22"]
[Round "?"]
[White "Sibi Srinivas Einstein"]
[Black "Sidhant, Mohapatra"]
[Result "0-1"]
[ECO "D37"]
[WhiteElo "1751"]
[BlackElo "2357"]
[Annotator "NA"]
[PlyCount "138"]
[EventDate "2019.09.22"]
[EventCountry "IND"]
[SourceTitle "playchess.com"]
[Source "ChessBase"]
[SourceQuality "1"]
[TimeControl "5400+30"]

1. d4 {[%emt 0:00:00]} Nf6 {[%emt 0:03:52]} 2. c4 {[%emt 0:00:41]} e6 {[%emt 0:00:23]} 3. Nf3 {[%emt 0:01:21]} d5 {[%emt 0:00:13]} 4. Nc3 {[%emt 0:03:43]} a6 {[%emt 0:01:14]} 5. cxd5 {[%emt 0:05:43]} exd5 {[%emt 0:00:43]} 6. Bg5 {[%emt 0:01:46]} Be6 {[%emt 0:04:08]} 7. Qc2 {[%emt 0:08:37]} Nbd7 {[%emt 0:02:33]} 8. e3 {[%emt 0:05:45]} Rc8 {[%emt 0:08:49]} 9. Bd3 {[%emt 0:11:00]} Bd6 {[%emt 0:02:27]} 10. O-O {[%emt 0:04:51]} h6 {[%emt 0:00:21]} 11. Bxf6 Nxf6 {[%emt 0:00:30]} 12. e4 dxe4 {[%emt 0:00:30]} 13. Nxe4 O-O {[%emt 0:00:30]} 14. a3 a5 {[%emt 0:00:30]} 15. Rfe1 Bd5 {[%emt 0:00:30]} 16. Nxf6+ Qxf6 {[%emt 0:00:30]} 17. Be4 Bxe4 {[%emt 0:00:30]} 18. Rxe4 Rfd8 {[%emt 0:00:30]} 19. Qe2 c6 {[%emt 0:00:30]} 20. Re1 Bf8 {[%emt 0:00:30]} 21. g3 Rd5 {[%emt 0:00:30]} 22. Kg2 c5 {[%emt 0:00:30]} 23. Rc1 b6 {[%emt 0:00:30]} 24. dxc5 Rdxc5 {[%emt 0:00:30]} 25. Rxc5 Bxc5 {[%emt 0:00:30]} 26. Re8+ Rxe8 {[%emt 0:00:30]} 27. Qxe8+ Kh7 {[%emt 0:00:30]} 28. b4 Be7 {[%emt 0:00:30]} 29. Qb5 axb4 {[%emt 0:00:30]} 30. axb4 Qd6 {[%emt 0:00:30]} 31. Qf5+ Kg8 {[%emt 0:00:30]} 32. b5 g6 {[%emt 0:00:30]} 33. Qc8+ Kg7 {[%emt 0:00:30]} 34. Qc4 Qf6 {[%emt 0:00:30]} 35. Nd2 Qe5 {[%emt 0:00:30]} 36. Nf3 Qb2 {[%emt 0:00:30]} 37. Nd4 Bc5 {[%emt 0:00:30]} 38. Ne2 Kg8 {[%emt 0:00:30]} 39. Qd3 Qa2 {[%emt 0:00:30]} 40. Kf3 Qa8+ {[%emt 0:00:30]} 41. Qe4 Qxe4+ {[%emt 0:00:30]} 42. Kxe4 Bxf2 {[%emt 0:00:30]} 43. Kd5 f5 {[%emt 0:00:30]} 44. Nf4 Kf7 {[%emt 0:00:30]} 45. Kc6 Bg1 {[%emt 0:00:30]} 46. Ne2 Be3 {[%emt 0:00:30]} 47. Nc3 g5 {[%emt 0:00:30]} 48. Kd5 Kg6 {[%emt 0:00:30]} 49. Ke5 Bg1 {[%emt 0:00:30]} 50. Nd5 Bc5 {[%emt 0:00:30]} 51. Ke6 h5 {[%emt 0:00:30]} 52. Ke5 Bg1 {[%emt 0:00:30]} 53. Ne7+ Kf7 {[%emt 0:00:30]} 54. Nxf5 Bxh2 {[%emt 0:00:30]} 55. Kd5 Kg6 {[%emt 0:00:30]} 56. Ke6 g4 {[%emt 0:00:30]} 57. Ne7+ Kg5 {[%emt 0:00:30]} 58. Nf5 Bxg3 {[%emt 0:00:30]} 59. Nxg3 h4 {[%emt 0:00:30]} 60. Ne4+ Kf4 {[%emt 0:00:30]} 61. Nc3 h3 {[%emt 0:00:30]} 62. Nd5+ Kf3 {[%emt 0:00:30]} 63. Nxb6 h2 {[%emt 0:00:30]} 64. Nd5 h1=Q {[%emt 0:00:30]} 65. b6 Qh6+ {[%emt 0:00:30]} 66. Kd7 Qg7+ {[%emt 0:00:30]} 67. Kc6 g3 {[%emt 0:00:30]} 68. b7 Qg8 {[%emt 0:00:30]} 69. Kc7 Qxd5 {[%emt 0:00:30]} 0-1

[Event "2nd Gujarat Open 2019"]
[Site "Ahmedabad, Gujarat"]
[Date "2019.09.22"]
[Round "?"]
[White "Ananmay Sharma"]
[Black "Neelash Saha"]
[Result "0-1"]
[ECO "D00"]
[WhiteElo "1734"]
[BlackElo "2334"]
[Annotator "NA"]
[PlyCount "56"]
[EventDate "2019.09.22"]
[EventCountry "IND"]
[SourceTitle "playchess.com"]
[Source "ChessBase"]
[SourceQuality "1"]
[TimeControl "5400+30"]

1. d4 {[%emt 0:00:00]} Nf6 {[%emt 0:00:00]} 2. Bf4 {[%emt 0:00:00]} d5 {[%emt 0:00:08]} 3. e3 {[%emt 0:00:00]} c5 {[%emt 0:00:03]} 4. c3 {[%emt 0:00:01]} Nc6 {[%emt 0:00:04]} 5. Nd2 {[%emt 0:00:22]} Bf5 {[%emt 0:00:10]} 6. Qb3 {[%emt 0:00:29]} Qc8 {[%emt 0:00:04]} 7. Ngf3 {[%emt 0:00:42]} c4 {[%emt 0:00:40]} 8. Qd1 {[%emt 0:01:49]} h6 {[%emt 0:00:37]} 9. b3 {[%emt 0:03:09]} b5 {[%emt 0:04:16]} 10. a4 {[%emt 0:01:40]} b4 {[%emt 0:02:24]} 11. bxc4 {[%emt 0:00:49]} bxc3 {[%emt 0:00:13]} 12. Nb3 {[%emt 0:00:06]} Nb4 {[%emt 0:00:25]} 13. Rc1 {[%emt 0:00:48]} Na2 {[%emt 0:08:46]} 14. Ra1 {[%emt 0:01:14]} c2 {[%emt 0:02:58]} 15. Qd2 {[%emt 0:02:37]} Qb7 {[%emt 0:00:53]} 16. Nc1 {[%emt 0:02:27]} Nxc1 {[%emt 0:02:12]} 17. Qxc1 {[%emt 0:01:24]} e5 {[%emt 0:00:17]} 18. Nxe5 {[%emt 0:03:43]} Bb4+ {[%emt 0:00:27]} 19. Ke2 {[%emt 0:00:07]} Bc3 {[%emt 0:00:39]} 20. g4 {[%emt 0:02:35]} Bb2 {[%emt 0:02:26]} 21. Qe1 {[%emt 0:00:27]} Bxa1 {[%emt 0:00:42]} 22. Qxa1 {[%emt 0:00:06]} dxc4 {[%emt 0:01:46]} 23. Bh3 {[%emt 0:02:16]} Bd3+ {[%emt 0:00:30]} 24. Nxd3 {[%emt 0:00:24]} cxd3+ {[%emt 0:00:03]} 25. Kxd3 {[%emt 0:00:08]} Rc8 {[%emt 0:00:20]} 26. g5 {[%emt 0:00:59]} Qa6+ {[%emt 0:01:32]} 27. Kd2 {[%emt 0:00:28]} Ne4+ {[%emt 0:00:05]} 28. Kc1 {[%emt 0:00:27]} Qd3 {[%emt 0:00:10]} 0-1

[Event "2nd Gujarat Open 2019"]
[Site "Ahmedabad, Gujarat"]
[Date "2019.09.22"]
[Round "?"]
[White "Kukreja Sankalp"]
[Black "Rathnakaran, K.."]
[Result "0-1"]
[ECO "C02"]
[WhiteElo "1719"]
[BlackElo "2325"]
[Annotator "NA"]
[PlyCount "72"]
[EventDate "2019.09.22"]
[EventCountry "IND"]
[SourceTitle "playchess.com"]
[Source "ChessBase"]
[SourceQuality "1"]
[TimeControl "5400+30"]

1. e4 {[%emt 0:00:00]} e6 {[%emt 0:00:00]} 2. d4 {[%emt 0:00:00]} d5 {[%emt 0:00:00]} 3. e5 {[%emt 0:00:00]} c5 {[%emt 0:00:00]} 4. c3 {[%emt 0:00:00]} Nc6 {[%emt 0:00:00]} 5. Nf3 {[%emt 0:00:00]} Bd7 {[%emt 0:00:00]} 6. Be2 {[%emt 0:00:02]} f6 {[%emt 0:00:03]} 7. O-O {[%emt 0:00:07]} Qc7 {[%emt 0:00:04]} 8. Re1 {[%emt 0:01:17]} fxe5 {[%emt 0:00:09]} 9. Nxe5 {[%emt 0:00:29]} Nxe5 {[%emt 0:00:05]} 10. dxe5 {[%emt 0:00:19]} O-O-O {[%emt 0:00:15]} 11. Bf4 {[%emt 0:02:00]} Ne7 {[%emt 0:00:37]} 12. Bd3 {[%emt 0:02:10]} h6 {[%emt 0:00:07]} 13. Bg3 {[%emt 0:02:16]} g5 {[%emt 0:00:08]} 14. Nd2 {[%emt 0:07:19]} Bg7 {[%emt 0:00:08]} 15. Qe2 {[%emt 0:07:26]} Rdf8 {[%emt 0:00:44]} 16. c4 {[%emt 0:02:21]} d4 {[%emt 0:00:33]} 17. a3 {[%emt 0:01:44]} h5 {[%emt 0:02:02]} 18. h3 {[%emt 0:01:27]} Bc6 {[%emt 0:02:23]} 19. Be4 {[%emt 0:04:49]} Nf5 {[%emt 0:02:27]} 20. Bxc6 {[%emt 0:03:33]} Qxc6 {[%emt 0:00:09]} 21. Ne4 {[%emt 0:04:10]} Nxg3 {[%emt 0:00:33]} 22. Nxg3 {[%emt 0:00:25]} g4 {[%emt 0:01:46]} 23. hxg4 {[%emt 0:02:44]} hxg4 {[%emt 0:00:05]} 24. Qxg4 {[%emt 0:01:22]} Bh6 {[%emt 0:02:14]} 25. Qe4 {[%emt 0:06:10]} Qd7 {[%emt 0:01:02]} 26. b4 Bd2 {[%emt 0:00:30]} 27. Red1 Bc3 {[%emt 0:00:30]} 28. Rab1 cxb4 {[%emt 0:00:30]} 29. axb4 Qg7 {[%emt 0:00:30]} 30. c5 Qh6 {[%emt 0:00:30]} 31. Qg4 Rf4 {[%emt 0:00:30]} 32. Qh3 Rh4 {[%emt 0:00:30]} 33. Nf5 exf5 {[%emt 0:00:30]} 34. Qxf5+ Kb8 {[%emt 0:00:30]} 35. g3 Rf4 {[%emt 0:00:30]} 36. Qxf4 Qh1# {[%emt 0:00:30]} 0-1

[Event "2nd Gujarat Open 2019"]
[Site "Ahmedabad, Gujarat"]
[Date "2019.09.22"]
[Round "?"]
[White "Akira Sowmyanath"]
[Black "Bharat Kumar Reddy Poluri"]
[Result "0-1"]
[ECO "C01"]
[WhiteElo "1717"]
[BlackElo "2304"]
[Annotator "NA"]
[PlyCount "82"]
[EventDate "2019.09.22"]
[EventCountry "IND"]
[SourceTitle "playchess.com"]
[Source "ChessBase"]
[SourceQuality "1"]
[TimeControl "5400+30"]

1. e4 {[%emt 0:00:00]} e6 {[%emt 0:00:25]} 2. d4 {[%emt 0:00:07]} d5 {[%emt 0:00:06]} 3. exd5 {[%emt 0:00:12]} exd5 {[%emt 0:00:04]} 4. Nf3 {[%emt 0:00:14]} Nf6 {[%emt 0:00:21]} 5. Bd3 {[%emt 0:00:36]} c5 {[%emt 0:00:09]} 6. O-O {[%emt 0:02:12]} c4 {[%emt 0:03:39]} 7. Re1+ {[%emt 0:00:11]} Be7 {[%emt 0:00:02]} 8. Bf1 {[%emt 0:00:26]} O-O {[%emt 0:00:04]} 9. h3 {[%emt 0:08:12]} Nc6 {[%emt 0:00:09]} 10. Bf4 {[%emt 0:00:56]} Bf5 {[%emt 0:00:46]} 11. c3 {[%emt 0:02:07]} Re8 {[%emt 0:01:05]} 12. g4 {[%emt 0:06:00]} Be6 {[%emt 0:01:19]} 13. Nbd2 {[%emt 0:02:07]} b5 {[%emt 0:00:24]} 14. b4 {[%emt 0:01:44]} a5 {[%emt 0:00:57]} 15. a3 {[%emt 0:00:27]} Nd7 {[%emt 0:01:25]} 16. Ne5 {[%emt 0:11:56]} Ndxe5 {[%emt 0:01:04]} 17. Bxe5 {[%emt 0:00:06]} Nxe5 {[%emt 0:01:22]} 18. Rxe5 {[%emt 0:00:10]} Bd6 {[%emt 0:00:06]} 19. Re1 {[%emt 0:00:11]} h5 {[%emt 0:00:10]} 20. Bg2 {[%emt 0:08:51]} hxg4 {[%emt 0:01:39]} 21. hxg4 {[%emt 0:00:07]} Qh4 {[%emt 0:01:54]} 22. Nf3 {[%emt 0:04:32]} Qxg4 23. Ne5 {[%emt 0:00:30]} Qg5 24. Qc1 {[%emt 0:00:30]} Qh4 25. Nf3 {[%emt 0:00:30]} Qf4 26. Ne5 {[%emt 0:00:30]} Qf5 27. Qb1 {[%emt 0:00:30]} Qxb1 28. Rexb1 {[%emt 0:00:30]} axb4 29. axb4 {[%emt 0:00:30]} Bc7 30. f4 {[%emt 0:00:30]} g6 31. Re1 {[%emt 0:00:30]} Kg7 32. Kf2 {[%emt 0:00:30]} Bd6 33. Kf3 {[%emt 0:00:30]} Bf5 34. Kg3 {[%emt 0:00:30]} f6 35. Nc6 {[%emt 0:00:30]} Rxe1 36. Rxa8 {[%emt 0:00:30]} Re3+ 37. Kf2 {[%emt 0:00:30]} Rxc3 38. Ra7+ {[%emt 0:00:30]} Kh6 39. Bxd5 {[%emt 0:00:30]} Bxf4 40. Rf7 {[%emt 0:00:30]} Rc2+ 41. Kf3 {[%emt 0:00:30]} Kg5 0-1

[Event "2nd Gujarat Open 2019"]
[Site "Ahmedabad, Gujarat"]
[Date "2019.09.22"]
[Round "?"]
[White "Alekhya Mukhopadhyay"]
[Black "Srija, Seshadri"]
[Result "0-1"]
[ECO "A01"]
[WhiteElo "1706"]
[BlackElo "2270"]
[Annotator "NA"]
[PlyCount "58"]
[EventDate "2019.09.22"]
[EventCountry "IND"]
[SourceTitle "playchess.com"]
[Source "ChessBase"]
[SourceQuality "1"]
[TimeControl "5400+30"]

1. b3 {[%emt 0:00:00]} e5 {[%emt 0:00:19]} 2. Bb2 {[%emt 0:00:00]} Nc6 {[%emt 0:00:45]} 3. e3 {[%emt 0:00:09]} g6 {[%emt 0:01:20]} 4. Nf3 {[%emt 0:01:36]} Bg7 {[%emt 0:00:15]} 5. Bb5 {[%emt 0:01:50]} Nge7 {[%emt 0:00:57]} 6. O-O {[%emt 0:01:25]} O-O {[%emt 0:02:35]} 7. d4 {[%emt 0:04:08]} e4 {[%emt 0:06:39]} 8. Ne5 {[%emt 0:02:07]} Nxe5 {[%emt 0:03:33]} 9. dxe5 {[%emt 0:00:27]} d5 {[%emt 0:01:19]} 10. f4 {[%emt 0:19:13]} exf3 {[%emt 0:09:25]} 11. Qxf3 {[%emt 0:01:08]} a6 {[%emt 0:04:18]} 12. Bd3 {[%emt 0:02:26]} Nc6 {[%emt 0:01:22]} 13. Qf4 Qe8 {[%emt 0:00:30]} 14. Nd2 Nxe5 {[%emt 0:00:30]} 15. Ba3 Ng4 {[%emt 0:00:30]} 16. Bxf8 Be5 {[%emt 0:00:30]} 17. Qb4 Bxa1 {[%emt 0:00:30]} 18. Be7 Bg7 {[%emt 0:00:30]} 19. Qc5 Bd7 {[%emt 0:00:30]} 20. h3 b6 {[%emt 0:00:30]} 21. Qa3 Nxe3 {[%emt 0:00:30]} 22. Re1 Bd4 {[%emt 0:00:30]} 23. Kh1 Bxh3 {[%emt 0:00:30]} 24. gxh3 Qd7 {[%emt 0:00:30]} 25. Re2 Qxh3+ {[%emt 0:00:30]} 26. Rh2 Qg4 {[%emt 0:00:30]} 27. Qc1 Nd1 {[%emt 0:00:30]} 28. Rg2 Qh3+ {[%emt 0:00:30]} 29. Rh2 Nf2+ {[%emt 0:00:30]} 0-1

[Event "2nd Gujarat Open 2019"]
[Site "Ahmedabad, Gujarat"]
[Date "2019.09.22"]
[Round "?"]
[White "Kadam, Nikhil"]
[Black "Nikhil Magizhnan"]
[Result "1/2-1/2"]
[ECO "C02"]
[WhiteElo "1705"]
[BlackElo "2251"]
[Annotator "NA"]
[PlyCount "44"]
[EventDate "2019.09.22"]
[EventCountry "IND"]
[SourceTitle "playchess.com"]
[Source "ChessBase"]
[SourceQuality "1"]
[TimeControl "5400+30"]

1. e4 {[%emt 0:00:00]} e6 {[%emt 0:01:21]} 2. d4 {[%emt 0:00:04]} d5 {[%emt 0:00:33]} 3. e5 {[%emt 0:00:26]} c5 {[%emt 0:00:31]} 4. Nf3 {[%emt 0:00:48]} Nc6 {[%emt 0:00:46]} 5. Bd3 {[%emt 0:00:35]} cxd4 {[%emt 0:08:14]} 6. O-O {[%emt 0:00:35]} Nge7 {[%emt 0:00:53]} 7. Re1 {[%emt 0:04:25]} Ng6 {[%emt 0:05:08]} 8. a3 {[%emt 0:04:13]} a5 {[%emt 0:03:20]} 9. g3 {[%emt 0:13:51]} Qc7 {[%emt 0:04:34]} 10. Qe2 {[%emt 0:01:19]} Bc5 {[%emt 0:00:44]} 11. Nbd2 {[%emt 0:05:08]} Nge7 {[%emt 0:02:24]} 12. Nf1 {[%emt 0:01:22]} Bd7 {[%emt 0:04:30]} 13. Bd2 {[%emt 0:03:03]} Rc8 {[%emt 0:25:57]} 14. h4 {[%emt 0:07:34]} h6 {[%emt 0:03:25]} 15. N1h2 {[%emt 0:04:38]} Rb8 {[%emt 0:08:31]} 16. h5 {[%emt 0:10:13]} Rf8 {[%emt 0:17:44]} 17. Nh4 {[%emt 0:05:11]} f5 {[%emt 0:04:18]} 18. Ng2 {[%emt 0:04:23]} Kd8 {[%emt 0:03:01]} 19. Nh4 {[%emt 0:00:43]} Ke8 {[%emt 0:00:09]} 20. Ng2 {[%emt 0:00:28]} Kd8 {[%emt 0:00:27]} 21. Nh4 {[%emt 0:00:04]} Ke8 {[%emt 0:00:55]} 22. Ng2 {[%emt 0:00:03]} Kd8 {[%emt 0:00:34]} 1/2-1/2

[Event "2nd Gujarat Open 2019"]
[Site "Ahmedabad, Gujarat"]
[Date "2019.09.22"]
[Round "1"]
[White "Vasquez Schroeder, Rodrigo"]
[Black "Abhay Bandewar"]
[Result "1/2-1/2"]
[ECO "B94"]
[WhiteElo "2476"]
[BlackElo "1815"]
[Annotator "ChessBase"]
[PlyCount "67"]
[EventDate "2019.09.22"]
[EventCountry "IND"]
[SourceTitle "playchess.com"]
[Source "ChessBase"]
[SourceQuality "1"]
[TimeControl "5400+30"]

1. e4 {[%emt 0:04:13]} c5 {[%emt 0:00:45]} 2. Nf3 {[%emt 0:00:07]} d6 {[%emt 0:00:07]} 3. d4 {[%emt 0:00:03]} cxd4 {[%emt 0:00:06]} 4. Nxd4 {[%emt 0:00:03]} Nf6 {[%emt 0:00:23]} 5. Nc3 {[%emt 0:00:05]} a6 {[%emt 0:03:13]} 6. Bg5 {[%emt 0:00:08]} Nbd7 {[%emt 0:00:11]} 7. Bc4 {[%emt 0:00:54]} Qa5 {[%emt 0:07:27]} 8. Qd2 {[%emt 0:02:23]} b5 {[%emt 0:03:55]} 9. Bd5 {[%emt 0:04:57]} Nxd5 {[%emt 0:02:31]} 10. Nxd5 {[%emt 0:00:09]} Qxd2+ {[%emt 0:00:52]} 11. Bxd2 {[%emt 0:00:55]} Ra7 {[%emt 0:08:39]} 12. Nc6 {[%emt 0:02:48]} Rb7 {[%emt 0:00:30]} 13. Na5 {[%emt 0:02:24]} Rb8 {[%emt 0:08:48]} 14. Nc7+ {[%emt 0:09:55]} Kd8 {[%emt 0:00:27]} 15. Nd5 {[%emt 0:00:10]} Bb7 {[%emt 0:01:48]} 16. Nxb7+ {[%emt 0:02:54]} Rxb7 {[%emt 0:00:07]} 17. O-O-O {[%emt 0:11:25]} e6 {[%emt 0:02:44]} 18. Nb4 {[%emt 0:01:44]} Nb8 {[%emt 0:04:57]} 19. Bf4 {[%emt 0:04:14]} a5 {[%emt 0:03:49]} 20. Nd3 {[%emt 0:00:19]} Kc8 {[%emt 0:02:08]} 21. b3 {[%emt 0:03:11]} Na6 {[%emt 0:08:43]} 22. Nb2 {[%emt 0:00:44]} Nc5 {[%emt 0:02:23]} 23. f3 {[%emt 0:00:26]} Rd7 {[%emt 0:00:27]} 24. Rd2 {[%emt 0:01:02]} Be7 {[%emt 0:00:36]} 25. Rhd1 {[%emt 0:00:13]} Rhd8 {[%emt 0:01:02]} 26. c3 {[%emt 0:00:35]} d5 {[%emt 0:09:10]} 27. exd5 {[%emt 0:00:46]} exd5 {[%emt 0:02:16]} 28. Be3 {[%emt 0:02:17]} Kb7 {[%emt 0:00:27]} 29. Kc2 {[%emt 0:00:28]} Ne6 {[%emt 0:03:48]} 30. g3 {[%emt 0:04:13]} Bf6 {[%emt 0:01:47]} 31. Bd4 {[%emt 0:02:29]} Nxd4+ {[%emt 0:01:51]} 32. cxd4 {[%emt 0:00:02]} Rc8+ {[%emt 0:01:04]} 33. Kd3 {[%emt 0:02:52]} Re7 {[%emt 0:00:55]} 34. Rf1 {[%emt 0:02:34]} 1/2-1/2

[Event "2nd Gujarat Open 2019"]
[Site "Ahmedabad, Gujarat"]
[Date "2019.09.23"]
[Round "2.3"]
[White "Chanda, Sandipan"]
[Black "Anusha N L V"]
[Result "1-0"]
[ECO "D02"]
[WhiteElo "2529"]
[BlackElo "2081"]
[Annotator "ChessBase"]
[PlyCount "73"]
[EventDate "2019.09.22"]
[EventCountry "IND"]
[SourceTitle "playchess.com"]
[Source "ChessBase"]
[SourceQuality "1"]
[TimeControl "5400+30"]

1. d4 {[%emt 0:00:00]} d5 {[%emt 0:00:00]} 2. Nf3 {[%emt 0:00:00]} Nf6 {[%emt 0:00:07]} 3. Bf4 {[%emt 0:00:00]} Bf5 {[%emt 0:00:41]} 4. e3 {[%emt 0:00:22]} e6 {[%emt 0:00:49]} 5. c4 {[%emt 0:02:16]} Bxb1 {[%emt 0:03:51]} 6. Rxb1 {[%emt 0:00:11]} Bb4+ {[%emt 0:00:37]} 7. Ke2 {[%emt 0:00:09]} Bd6 {[%emt 0:00:38]} 8. g3 {[%emt 0:00:35]} dxc4 {[%emt 0:05:34]} 9. Qa4+ {[%emt 0:01:31]} Nbd7 {[%emt 0:05:50]} 10. Bg2 {[%emt 0:01:25]} Nd5 {[%emt 0:04:40]} 11. Qxc4 {[%emt 0:00:33]} Qe7 {[%emt 0:04:43]} 12. Bxd6 {[%emt 0:08:05]} cxd6 {[%emt 0:04:35]} 13. Qb5 {[%emt 0:02:49]} O-O {[%emt 0:10:11]} 14. Qxb7 {[%emt 0:04:05]} Rab8 {[%emt 0:05:46]} 15. Qa6 {[%emt 0:01:12]} Rfc8 {[%emt 0:03:01]} 16. Nd2 {[%emt 0:04:26]} N7f6 {[%emt 0:13:29]} 17. Rhc1 {[%emt 0:02:37]} Qd7 {[%emt 0:03:45]} 18. a3 {[%emt 0:04:40]} h6 {[%emt 0:06:46]} 19. Ke1 {[%emt 0:14:49]} Rxc1+ {[%emt 0:03:54]} 20. Rxc1 {[%emt 0:00:05]} Rxb2 {[%emt 0:01:29]} 21. Qc8+ {[%emt 0:10:00]} Qxc8 {[%emt 0:02:05]} 22. Rxc8+ {[%emt 0:00:07]} Kh7 {[%emt 0:00:05]} 23. e4 {[%emt 0:00:29]} Nb6 {[%emt 0:02:25]} 24. Rc7 {[%emt 0:01:01]} Kg8 {[%emt 0:04:16]} 25. Rxa7 {[%emt 0:14:17]} Ng4 {[%emt 0:04:44]} 26. a4 {[%emt 0:11:11]} Nxf2 {[%emt 0:04:00]} 27. a5 {[%emt 0:00:44]} Na4 {[%emt 0:01:27]} 28. a6 {[%emt 0:01:53]} Nc3 {[%emt 0:00:57]} 29. Kxf2 {[%emt 0:05:59]} Rxd2+ {[%emt 0:00:07]} 30. Kf3 {[%emt 0:01:04]} Rxd4 {[%emt 0:02:20]} 31. Rc7 {[%emt 0:02:18]} Rd3+ {[%emt 0:00:20]} 32. Kg4 {[%emt 0:00:37]} Nb5 {[%emt 0:02:14]} 33. Rc8+ {[%emt 0:01:50]} Kh7 {[%emt 0:00:05]} 34. Bf1 {[%emt 0:00:06]} Na7 {[%emt 0:00:43]} 35. Rc7 {[%emt 0:00:22]} Rd1 {[%emt 0:00:28]} 36. Be2 {[%emt 0:00:47]} Rd2 {[%emt 0:00:11]} 37. Kf3 {[%emt 0:00:08]} 1-0

[Event "2nd Gujarat Open 2019"]
[Site "Ahmedabad, Gujarat"]
[Date "2019.09.23"]
[Round "2.11"]
[White "Deodhar, Vrushali Umesh"]
[Black "Karthikeyan, P.."]
[Result "0-1"]
[ECO "A31"]
[WhiteElo "2010"]
[BlackElo "2408"]
[Annotator "ChessBase"]
[PlyCount "144"]
[EventDate "2019.09.22"]
[EventCountry "IND"]
[SourceTitle "playchess.com"]
[Source "ChessBase"]
[SourceQuality "1"]
[TimeControl "5400+30"]

1. c4 {[%emt 0:00:00]} c5 {[%emt 0:00:00]} 2. Nc3 {[%emt 0:00:00]} Nf6 {[%emt 0:00:00]} 3. Nf3 {[%emt 0:00:00]} Nc6 {[%emt 0:00:18]} 4. d4 {[%emt 0:00:08]} cxd4 {[%emt 0:00:10]} 5. Nxd4 {[%emt 0:00:03]} Qb6 {[%emt 0:00:09]} 6. Nc2 {[%emt 0:02:36]} e6 {[%emt 0:01:27]} 7. e3 {[%emt 0:06:15]} Be7 {[%emt 0:00:31]} 8. Be2 {[%emt 0:00:16]} O-O {[%emt 0:00:08]} 9. O-O {[%emt 0:00:14]} Qc7 {[%emt 0:03:47]} 10. b3 {[%emt 0:01:02]} b6 {[%emt 0:01:07]} 11. Bb2 {[%emt 0:00:15]} Bb7 {[%emt 0:00:28]} 12. Nb5 {[%emt 0:04:21]} Qb8 {[%emt 0:00:04]} 13. Bf3 {[%emt 0:01:53]} d6 {[%emt 0:07:18]} 14. Qe2 {[%emt 0:10:28]} a6 {[%emt 0:02:08]} 15. Nc3 {[%emt 0:00:29]} Rc8 {[%emt 0:04:03]} 16. Rad1 {[%emt 0:02:00]} Nd7 {[%emt 0:01:13]} 17. Nd4 {[%emt 0:06:44]} b5 {[%emt 0:12:35]} 18. cxb5 {[%emt 0:22:26]} Nxd4 {[%emt 0:01:42]} 19. Rxd4 {[%emt 0:00:02]} Bxf3 {[%emt 0:00:16]} 20. Qxf3 {[%emt 0:00:30]} Bf6 {[%emt 0:03:02]} 21. Rc4 {[%emt 0:01:28]} axb5 {[%emt 0:00:35]} 22. Rxc8+ {[%emt 0:01:13]} Qxc8 {[%emt 0:00:04]} 23. Rc1 {[%emt 0:02:50]} Qa6 {[%emt 0:04:38]} 24. h3 {[%emt 0:10:19]} b4 {[%emt 0:08:21]} 25. Na4 {[%emt 0:01:14]} Bxb2 {[%emt 0:00:21]} 26. Nxb2 {[%emt 0:00:03]} Qxa2 {[%emt 0:01:18]} 27. Rc7 {[%emt 0:01:36]} Ne5 {[%emt 0:06:59]} 28. Qb7 {[%emt 0:01:19]} Rf8 {[%emt 0:01:27]} 29. Nc4 {[%emt 0:07:51]} Qxb3 {[%emt 0:10:50]} 30. Nxe5 {[%emt 0:01:13]} dxe5 {[%emt 0:00:54]} 31. Qe4 {[%emt 0:00:08]} Qd1+ {[%emt 0:02:41]} 32. Kh2 {[%emt 0:00:01]} Qd6 {[%emt 0:04:10]} 33. Rc6 {[%emt 0:07:57]} Qd5 {[%emt 0:08:53]} 34. Qxd5 {[%emt 0:00:25]} exd5 {[%emt 0:00:03]} 35. Rb6 {[%emt 0:00:01]} Rd8 {[%emt 0:00:21]} 36. Rxb4 {[%emt 0:02:09]} Kf8 {[%emt 0:01:17]} 37. Kg3 {[%emt 0:01:00]} Ke7 {[%emt 0:01:04]} 38. Kf3 {[%emt 0:00:14]} Ke6 {[%emt 0:02:24]} 39. Ra4 {[%emt 0:00:43]} h5 {[%emt 0:00:36]} 40. g3 {[%emt 0:02:17]} Rd7 {[%emt 0:04:25]} 41. Rb4 {[%emt 0:01:04]} Kd6 {[%emt 0:00:49]} 42. Ke2 {[%emt 0:00:20]} Ra7 {[%emt 0:00:35]} 43. Rb2 {[%emt 0:01:13]} Kc5 {[%emt 0:00:11]} 44. Kd3 {[%emt 0:01:43]} h4 {[%emt 0:04:35]} 45. Rc2+ {[%emt 0:00:29]} Kd6 {[%emt 0:00:09]} 46. Ke2 {[%emt 0:01:03]} hxg3 {[%emt 0:00:20]} 47. fxg3 {[%emt 0:00:02]} g5 {[%emt 0:01:40]} 48. Rb2 {[%emt 0:00:47]} e4 {[%emt 0:01:10]} 49. Kf2 {[%emt 0:01:06]} Ke5 {[%emt 0:01:42]} 50. g4 {[%emt 0:01:12]} Ra1 {[%emt 0:00:29]} 51. Rb7 {[%emt 0:01:00]} Ra2+ {[%emt 0:00:02]} 52. Kf1 {[%emt 0:00:01]} f6 {[%emt 0:01:02]} 53. Rh7 {[%emt 0:00:56]} Rh2 {[%emt 0:00:41]} 54. Rh8 {[%emt 0:00:25]} Kd6 {[%emt 0:00:12]} 55. Rh6 {[%emt 0:00:59]} Ke6 {[%emt 0:00:22]} 56. Rh7 {[%emt 0:00:04]} Kd6 {[%emt 0:01:23]} 57. Ke1 {[%emt 0:00:25]} Kc5 {[%emt 0:00:23]} 58. Rh6 {[%emt 0:00:02]} Kc4 {[%emt 0:00:30]} 59. Rxf6 {[%emt 0:00:05]} Rxh3 {[%emt 0:00:08]} 60. Ke2 {[%emt 0:01:49]} Rg3 {[%emt 0:00:27]} 61. Rc6+ {[%emt 0:00:30]} Kb5 {[%emt 0:00:02]} 62. Rc8 {[%emt 0:00:40]} Rg2+ {[%emt 0:00:34]} 63. Kf1 {[%emt 0:00:07]} Rxg4 {[%emt 0:00:08]} 64. Kf2 {[%emt 0:00:02]} Rh4 {[%emt 0:00:53]} 65. Kg2 {[%emt 0:00:49]} Rh6 {[%emt 0:00:54]} 66. Rg8 {[%emt 0:00:14]} Rf6 {[%emt 0:00:40]} 67. Rxg5 {[%emt 0:00:07]} Kc4 {[%emt 0:00:17]} 68. Rg3 {[%emt 0:00:40]} Kd3 {[%emt 0:00:17]} 69. Rg5 {[%emt 0:00:44]} Ke2 {[%emt 0:01:23]} 70. Kg1 {[%emt 0:00:48]} Rf1+ {[%emt 0:00:23]} 71. Kg2 {[%emt 0:00:02]} Rd1 {[%emt 0:00:09]} 72. Rg3 {[%emt 0:00:15]} Rd3 {[%emt 0:00:06]} 0-1